bitfinex-derivatives/quotes_BTCF0:USTF0_20251110
["timestamp","ask_amount","ask_price","bid_price","bid_amount"]
[1762772931303,0.63858339,106020.0,106010.0,0.079063]
[1762772931600,0.31406339,106020.0,106010.0,0.1734174]
[1762772931796,0.63858339,106020.0,106010.0,0.1734174]
[1762772931997,0.31406339,106020.0,106010.0,0.1734174]
[1762772932198,0.63858339,106020.0,106010.0,0.1734174]
[1762772932805,0.54423789,106020.0,106010.0,0.1734174]
[1762772933306,0.63858339,106020.0,106010.0,0.1734174]
[1762772935816,0.63858339,106020.0,106010.0,0.079063]
[1762772938219,0.74276423,106020.0,106010.0,0.01119803]
[1762772939517,0.74276423,106020.0,106010.0,0.05641803]
[1762772939518,0.65025339,106020.0,106010.0,0.05641803]
[1762772939715,0.31406329,106020.0,106010.0,0.16385233]
[1762772940116,0.63862329,106020.0,106010.0,0.06949803]
[1762772940714,0.63762329,106020.0,106010.0,0.06249803]
[1762772940920,0.63762329,106020.0,106010.0,0.06449803]
[1762772941915,0.63762329,106020.0,106010.0,0.15885233]
[1762772942713,0.63762329,106020.0,106010.0,0.06449803]
[1762772943714,0.66046819,106020.0,106010.0,0.06449803]
[1762772944218,0.63762329,106020.0,106010.0,0.06449803]
[1762772944419,0.66046656,106020.0,106010.0,0.06449803]
[1762772944925,0.66046656,106020.0,106010.0,0.15885263]
[1762772945218,0.63762359,106020.0,106010.0,0.15885263]
[1762772945718,0.54327789,106020.0,106010.0,0.15885263]
[1762772946516,0.63762359,106020.0,106010.0,0.15885263]
[1762772947114,0.54327789,106020.0,106010.0,0.15885263]
[1762772947513,0.63762359,106020.0,106010.0,0.15885263]
[1762772948722,0.21871789,106020.0,106010.0,0.15885263]
[1762772949022,0.54327789,106020.0,106010.0,0.15885263]
[1762772950018,0.63762359,106020.0,106010.0,0.15885263]
[1762772950917,0.31306359,106020.0,106010.0,0.15885263]
[1762772951118,0.63762359,106020.0,106010.0,0.15885263]
[1762772951620,0.63762359,106020.0,106010.0,0.06449803]
[1762772951924,0.63762359,106020.0,106010.0,0.15885263]
[1762772952624,0.63762359,106020.0,106010.0,0.06449803]
[1762772954217,0.54327789,106020.0,106010.0,0.15885263]
[1762772954421,0.35825621,106020.0,106010.0,0.15885263]
[1762772954624,0.21871789,106020.0,106010.0,0.15885263]
[1762772954825,0.54327789,106020.0,106010.0,0.15885263]
[1762772955526,0.63762359,106020.0,106010.0,0.15885263]
[1762772955726,0.54327789,106020.0,106010.0,0.15885263]
[1762772956225,0.00108354,106020.0,106010.0,0.25136347]
[1762772956422,0.00108354,106020.0,106010.0,0.48716347]
[1762772956423,0.18044354,106020.0,106010.0,0.48716347]
[1762772956923,0.00108354,106020.0,106010.0,0.48716347]
[1762772957124,0.00108354,106020.0,106010.0,0.25136347]
[1762772957828,0.00108354,106020.0,106010.0,0.48716347]
[1762772958030,0.00108354,106020.0,106010.0,0.25136347]
[1762772958222,0.00108354,106020.0,106010.0,0.48716347]
[1762772958623,0.00108354,106020.0,106010.0,0.25136347]
[1762772958925,0.00108354,106020.0,106010.0,0.4871839]
[1762772960231,0.00108354,106020.0,106010.0,0.6345839]
[1762772961529,0.00108354,106020.0,106010.0,0.3987839]
[1762772961934,0.00108354,106020.0,106010.0,0.6345839]
[1762772962232,0.00108354,106020.0,106010.0,0.3987839]
[1762772962434,0.07842354,106020.0,106010.0,0.6345839]
[1762772962823,0.07842354,106020.0,106010.0,0.3987839]
[1762772963022,0.07842354,106020.0,106010.0,0.6345839]
[1762772963328,0.07842354,106020.0,106010.0,0.3987839]
[1762772963524,0.07842354,106020.0,106010.0,0.6345839]
[1762772964231,0.07842354,106020.0,106010.0,0.3987839]
[1762772964426,0.07842354,106020.0,106010.0,0.6345839]
[1762772964827,0.07915621,106020.0,106010.0,0.54205263]
[1762772965029,0.07915621,106020.0,106010.0,0.30625263]
[1762772965430,0.07915621,106020.0,106010.0,0.54205263]
[1762772966831,0.07915621,106020.0,106010.0,0.30625263]
[1762772968335,0.09509621,106020.0,106010.0,0.30625263]
[1762772968531,0.07915621,106020.0,106010.0,0.30625263]
[1762772974038,0.07842354,106020.0,106010.0,0.3987839]
[1762772974336,0.07842354,106020.0,106010.0,0.6345839]
[1762772974528,0.07842354,106020.0,106010.0,0.3987839]
[1762772974729,0.07842354,106020.0,106010.0,0.6345839]
[1762772974929,0.07842354,106020.0,106010.0,0.3987839]
[1762772976037,0.07842354,106020.0,106010.0,0.6345839]
[1762772976734,0.07842354,106020.0,106010.0,0.3987839]
[1762772976940,0.07842354,106020.0,106010.0,0.6345839]
[1762772978742,0.07842354,106020.0,106010.0,0.3987839]
[1762772978936,0.07842354,106020.0,106010.0,0.6345839]
[1762772980139,0.07842354,106020.0,106010.0,0.3987839]
[1762772980342,0.07842354,106020.0,106010.0,0.6345839]
[1762772980639,0.07915621,106020.0,106010.0,0.3987839]
[1762772981932,0.07842354,106020.0,106010.0,0.3987839]
[1762772982138,1e-08,106030.0,106020.0,0.1528063]
[1762772982437,0.13459127,106050.0,106040.0,0.1527885]
[1762772982645,0.27860394,106050.0,106040.0,0.15498653]
[1762772982942,0.45980394,106050.0,106040.0,0.15498653]
[1762772983134,0.36727267,106050.0,106040.0,0.15498653]
[1762772983330,0.04279267,106050.0,106040.0,0.15498653]
[1762772983537,0.00073267,106050.0,106040.0,0.15498653]
[1762772984334,0.00073267,106050.0,106040.0,0.22278527]
[1762772984745,0.00273267,106050.0,106040.0,0.22378527]
[1762772984948,0.002,106050.0,106040.0,0.22378527]
[1762772985646,0.002,106050.0,106040.0,0.31631654]
[1762772986444,0.005,106050.0,106040.0,0.39132633]
[1762772986644,0.005,106050.0,106040.0,0.32352759]
[1762772987245,0.005,106050.0,106040.0,0.39125425]
[1762772989049,0.005,106050.0,106040.0,0.62701425]
[1762772989849,0.005,106050.0,106040.0,0.95145425]
[1762772990048,0.02592,106070.0,106060.0,0.1527607]
[1762772990353,0.14144394,106070.0,106060.0,0.15495873]
[1762772991547,0.14144394,106070.0,106060.0,0.15595873]
[1762772992054,0.04891267,106070.0,106060.0,0.15595873]
[1762772992253,0.04891267,106070.0,106060.0,0.15695873]
[1762772993352,0.14144394,106070.0,106060.0,0.15695873]
[1762772997456,0.23574624,106070.0,106060.0,0.15695873]
[1762773001063,0.14144394,106070.0,106060.0,0.15695873]
[1762773003166,0.04891267,106070.0,106060.0,0.15695873]
[1762773003668,0.14144394,106070.0,106060.0,0.15695873]
[1762773004354,0.04891267,106070.0,106060.0,0.24949]
[1762773004554,0.36803109,106080.0,106070.0,0.1527524]
[1762773004754,0.04440376,106080.0,106070.0,0.2474817]
[1762773005061,0.04440376,106080.0,106070.0,0.15495043]
[1762773006765,0.04540376,106080.0,106070.0,0.15495043]
[1762773009565,0.04540376,106080.0,106070.0,0.2474817]
[1762773009566,0.00114109,106080.0,106070.0,0.2474817]
[1762773010064,0.32782,106090.0,106080.0,0.1527436]
[1762773010268,0.32782,106090.0,106080.0,0.2474729]
[1762773010468,0.32782,106090.0,106080.0,0.15494163]
[1762773011068,0.32782,106090.0,106080.0,0.22976817]
[1762773011271,0.35421,106090.0,106080.0,0.22976817]
[1762773011572,0.0085,106090.0,106080.0,0.32229944]
[1762773013570,0.02153109,106100.0,106090.0,0.1527337]
[1762773013767,0.02153109,106100.0,106090.0,0.247463]
[1762773013969,0.00014109,106100.0,106090.0,0.247463]
[1762773014867,0.00414109,106100.0,106090.0,0.15493173]
[1762773015268,0.00414109,106100.0,106090.0,0.247463]
[1762773015967,0.00714109,106100.0,106090.0,0.247463]
[1762773016476,0.29387,106110.0,106100.0,0.1527248]
[1762773016675,0.29387,106110.0,106100.0,0.15492283]
[1762773016979,0.38640127,106110.0,106100.0,0.15492283]
[1762773017177,0.29387,106110.0,106100.0,0.15492283]
[1762773017373,0.29460267,106110.0,106100.0,0.15492283]
[1762773017570,0.29860267,106110.0,106100.0,0.15492283]
[1762773017769,0.39113394,106110.0,106100.0,0.15492283]
[1762773017972,0.05176267,106110.0,106100.0,0.15492283]
[1762773018369,0.14429394,106110.0,106100.0,0.15492283]
[1762773018569,0.23855964,106110.0,106100.0,0.15492283]
[1762773018876,0.24155964,106110.0,106100.0,0.15492283]
[1762773019272,0.14729394,106110.0,106100.0,0.15492283]
[1762773019779,0.24155974,106110.0,106100.0,0.15492283]
[1762773020270,0.24155974,106110.0,106100.0,0.16567009]
[1762773020870,0.24143419,106110.0,106100.0,0.16567009]
[1762773021868,0.14716839,106110.0,106100.0,0.16567009]
[1762773027176,0.14716839,106110.0,106100.0,0.25807581]
[1762773027679,0.0105,106110.0,106100.0,0.49788153]
[1762773027878,0.04449109,106120.0,106110.0,0.05695]
[1762773028084,0.36877109,106120.0,106110.0,0.24581945]
[1762773028688,0.04449109,106120.0,106110.0,0.24581945]
[1762773029078,0.11462681,106120.0,106110.0,0.25381945]
[1762773029378,0.32774,106130.0,106120.0,0.1512068]
[1762773029379,0.14025572,106130.0,106120.0,0.1512068]
[1762773029585,0.46522839,106130.0,106120.0,0.15340483]
[1762773029781,0.14098839,106130.0,106120.0,0.15340483]
[1762773029985,0.46526839,106130.0,106120.0,0.15340483]
[1762773030177,0.37286267,106130.0,106120.0,0.22922846]
[1762773030377,0.46526839,106130.0,106120.0,0.32163418]
[1762773030976,0.37286267,106130.0,106120.0,0.32163418]
[1762773031179,0.46526839,106130.0,106120.0,0.32163418]
[1762773031475,0.46526839,106130.0,106120.0,0.23422846]
[1762773031784,0.46526839,106130.0,106120.0,0.33163418]
[1762773032974,0.46453572,106130.0,106120.0,0.23922846]
[1762773033180,0.37213,106130.0,106120.0,0.33163418]
[1762773033389,0.34886,106130.0,106120.0,0.33163418]
[1762773033888,0.37213,106130.0,106120.0,0.33163418]
[1762773034774,0.46453572,106130.0,106120.0,0.33163418]
[1762773035188,0.0035,106130.0,106120.0,0.4240399]
[1762773035488,0.04785,106130.0,106120.0,0.33163418]
[1762773036190,0.04785,106130.0,106120.0,0.23922846]
[1762773036389,0.04785,106130.0,106120.0,0.33163418]
[1762773036588,0.0035,106130.0,106120.0,0.65583418]
[1762773037090,0.0035,106130.0,106120.0,0.7482399]
[1762773037788,0.02458,106130.0,106120.0,0.7482399]
[1762773037979,0.04785,106130.0,106120.0,0.7482399]
[1762773038183,0.04785,106130.0,106120.0,0.65583418]
[1762773039291,0.46128531,106140.0,106130.0,0.151198]
[1762773039484,0.46128531,106140.0,106130.0,0.24580175]
[1762773039684,0.46201798,106140.0,106130.0,0.24580175]
[1762773040486,0.36961226,106140.0,106130.0,0.24580175]
[1762773040794,0.46201798,106140.0,106130.0,0.24980175]
[1762773040995,0.46201798,106140.0,106130.0,0.25280175]
[1762773041795,0.36961226,106140.0,106130.0,0.25280175]
[1762773042091,0.36887959,106140.0,106130.0,0.25280175]
[1762773042294,0.46128531,106140.0,106130.0,0.25280175]
[1762773042791,0.46201798,106140.0,106130.0,0.25280175]
[1762773045096,0.46201798,106140.0,106130.0,0.40020175]
[1762773046093,0.46201798,106140.0,106130.0,0.14731603]
[1762773046094,0.3380828,106140.0,106130.0,0.14731603]
[1762773047391,0.3380828,106140.0,106130.0,0.05306803]
[1762773047694,0.43048852,106140.0,106130.0,0.00919803]
[1762773047891,0.3380828,106140.0,106130.0,0.00919803]
[1762773048088,0.3380828,106140.0,106130.0,0.007]
[1762773048490,0.147688,106130.0,106120.0,0.094256]
[1762773048685,0.65743211,106130.0,106120.0,0.00219803]
[1762773050093,0.65743211,106130.0,106120.0,0.09945493]
[1762773050298,0.65743211,106130.0,106120.0,0.10245493]
[1762773050892,0.65743211,106130.0,106120.0,0.12451493]
[1762773051093,0.65743211,106130.0,106120.0,0.14663493]
[1762773053403,0.56502639,106130.0,106120.0,0.14663493]
[1762773053698,0.65743211,106130.0,106120.0,0.14663493]
[1762773057200,0.33323211,106130.0,106120.0,0.14663493]
[1762773057511,0.65743211,106130.0,106120.0,0.14663493]
[1762773058299,0.65743211,106130.0,106120.0,0.05237803]
[1762773058503,0.65743211,106130.0,106120.0,0.00719803]
[1762773059607,0.1482969,106120.0,106110.0,0.00014109]
[1762773059903,0.42624673,106120.0,106110.0,0.00014109]
[1762773060908,0.33384101,106120.0,106110.0,0.10160492]
[1762773061103,0.33384101,106120.0,106110.0,0.00733912]
[1762773061705,0.33384101,106120.0,106110.0,0.10160482]
[1762773061898,0.33384101,106120.0,106110.0,0.14415482]
[1762773062094,0.33384101,106120.0,106110.0,0.14215482]
[1762773062402,0.33384101,106120.0,106110.0,0.13915482]
[1762773062604,0.33384101,106120.0,106110.0,0.11803482]
[1762773063000,0.33384101,106120.0,106110.0,0.11903482]
[1762773063204,0.33384101,106120.0,106110.0,0.14015482]
[1762773063504,0.33384101,106120.0,106110.0,0.11903482]
[1762773064110,0.33384101,106120.0,106110.0,0.12003482]
[1762773064806,0.33384101,106120.0,106110.0,0.14115482]
[1762773065302,0.23958411,106120.0,106110.0,0.14115482]
[1762773065507,0.56386411,106120.0,106110.0,0.14115482]
[1762773066215,0.65812101,106120.0,106110.0,0.14115482]
[1762773066699,0.33384101,106120.0,106110.0,0.14115482]
[1762773066902,0.65812101,106120.0,106110.0,0.14115482]
[1762773068103,0.33384101,106120.0,106110.0,0.15404482]
[1762773068308,0.65812101,106120.0,106110.0,0.15404482]
[1762773068913,0.65812101,106120.0,106110.0,0.14115482]
[1762773069099,0.13855839,106120.0,106110.0,0.15404482]
[1762773069300,0.46299839,106120.0,106110.0,0.15404482]
[1762773069501,0.46299839,106120.0,106110.0,0.24645054]
[1762773071310,0.46299839,106120.0,106110.0,0.15404482]
[1762773071611,0.13855839,106120.0,106110.0,0.15404482]
[1762773071812,0.46299839,106120.0,106110.0,0.15404482]
[1762773073503,0.46299839,106120.0,106110.0,0.24645054]
[1762773073504,0.04615267,106120.0,106110.0,0.24645054]
[1762773073698,0.46295839,106120.0,106110.0,0.24645054]
[1762773075211,0.46295839,106120.0,106110.0,0.31413225]
[1762773077212,0.04615267,106120.0,106110.0,0.31413225]
[1762773077410,0.37051267,106120.0,106110.0,0.31413225]
[1762773078403,0.04615267,106120.0,106110.0,0.31413225]
[1762773078604,0.37051267,106120.0,106110.0,0.31413225]
[1762773079111,0.37051267,106120.0,106110.0,0.22172653]
[1762773079319,0.46291839,106120.0,106110.0,0.31413225]
[1762773079816,0.65820101,106120.0,106110.0,0.20883663]
[1762773080114,0.56394411,106120.0,106110.0,0.22149663]
[1762773080414,0.37051267,106120.0,106110.0,0.22149663]
[1762773080608,0.64958101,106120.0,106110.0,0.22149663]
[1762773081004,0.55532411,106120.0,106110.0,0.22149663]
[1762773081416,0.55532411,106120.0,106110.0,0.15381492]
[1762773082409,0.64958091,106120.0,106110.0,0.15381492]
[1762773082813,0.55532411,106120.0,106110.0,0.15381492]
[1762773083008,0.46289984,106120.0,106110.0,0.15381492]
[1762773083718,0.46289984,106120.0,106110.0,0.22149663]
[1762773083920,0.37051267,106120.0,106110.0,0.22149663]
[1762773084112,0.55715674,106120.0,106110.0,0.22149663]
[1762773084508,0.55715674,106120.0,106110.0,0.15381492]
[1762773084710,0.46289984,106120.0,106110.0,0.15381492]
[1762773088520,0.46289984,106120.0,106110.0,0.22149663]
[1762773092119,0.46277984,106120.0,106110.0,0.22149663]
[1762773093027,0.37039267,106120.0,106110.0,0.22149663]
[1762773094023,0.04615267,106120.0,106110.0,0.3138838]
[1762773094216,0.02231,106120.0,106110.0,0.3138838]
[1762773094417,0.02231,106120.0,106110.0,0.24620209]
[1762773094824,0.04541,106120.0,106110.0,0.24620209]
[1762773095025,0.04541,106120.0,106110.0,0.39360209]
[1762773096928,0.13775717,106130.0,106120.0,0.05638]
[1762773097229,0.37042267,106130.0,106120.0,0.22062593]
[1762773098322,0.04710267,106130.0,106120.0,0.3130131]
[1762773098535,0.37142267,106130.0,106120.0,0.3130131]
[1762773099728,0.37142267,106130.0,106120.0,0.39004287]
[1762773100622,0.37142267,106130.0,106120.0,0.2976557]
[1762773103934,0.37142267,106130.0,106120.0,0.39004287]
[1762773105438,0.04710267,106130.0,106120.0,0.39004287]
[1762773105932,0.04710267,106130.0,106120.0,0.32225187]
[1762773106137,0.001,106130.0,106120.0,0.40697035]
[1762773106731,0.001,106130.0,106120.0,0.32225187]
[1762773107531,0.001,106130.0,106120.0,0.40694295]
[1762773108437,0.001,106130.0,106120.0,0.73122295]
[1762773108634,0.02327,106130.0,106120.0,0.73122295]
[1762773108839,0.04637,106130.0,106120.0,0.73122295]
[1762773109235,0.02327,106130.0,106120.0,0.73122295]
[1762773109634,0.001,106130.0,106120.0,0.73122295]
[1762773110542,0.02251,106130.0,106120.0,0.73122295]
[1762773110735,0.04475,106130.0,106120.0,0.73122295]
[1762773110936,0.001,106130.0,106120.0,0.73122295]
[1762773111940,0.001,106130.0,106120.0,0.64653187]
[1762773112237,0.001,106130.0,106120.0,0.73119329]
[1762773115645,0.001,106130.0,106120.0,0.87859329]
[1762773115829,0.04350959,106140.0,106130.0,0.05808]
[1762773116033,0.04424226,106140.0,106130.0,0.15452603]
[1762773116738,0.04424226,106140.0,106130.0,0.23918745]
[1762773117141,0.04524226,106140.0,106130.0,0.23918745]
[1762773117740,0.04524226,106140.0,106130.0,0.33157462]
[1762773118137,0.04524226,106140.0,106130.0,0.15452603]
[1762773118342,0.04524226,106140.0,106130.0,0.33157462]
[1762773118543,0.00206226,106140.0,106130.0,0.2469132]
[1762773118746,0.00206226,106140.0,106130.0,0.33157462]
[1762773118942,0.02407226,106140.0,106130.0,0.33157462]
[1762773119145,0.04574226,106140.0,106130.0,0.33157462]
[1762773120342,0.04574226,106140.0,106130.0,0.2469132]
[1762773121234,0.02407226,106140.0,106130.0,0.2469132]
[1762773121439,0.00206226,106140.0,106130.0,0.3943132]
[1762773121640,0.02407226,106140.0,106130.0,0.30192603]
[1762773121946,0.00206226,106140.0,106130.0,0.3943132]
[1762773122349,0.02407226,106140.0,106130.0,0.3943132]
[1762773122941,0.04574226,106140.0,106130.0,0.3943132]
[1762773124250,0.00206226,106140.0,106130.0,0.3943132]
[1762773124441,0.00206226,106140.0,106130.0,0.47897158]
[1762773124648,0.02407226,106140.0,106130.0,0.51290973]
[1762773125342,0.00132959,106140.0,106130.0,0.51290973]
[1762773125547,0.02333959,106140.0,106130.0,0.51290973]
[1762773125757,0.04500959,106140.0,106130.0,0.51290973]
[1762773126543,0.02333959,106140.0,106130.0,0.51290973]
[1762773128247,0.00132959,106140.0,106130.0,0.51290973]
[1762773130354,0.00132959,106140.0,106130.0,0.3943132]
[1762773131152,0.06805,106150.0,106140.0,0.1515996]
[1762773131449,0.06805,106150.0,106140.0,0.36478133]
[1762773131650,0.37134,106170.0,106160.0,0.1515818]
[1762773131859,0.46628567,106170.0,106160.0,0.15377983]
[1762773132153,0.55867284,106170.0,106160.0,0.15377983]
[1762773132355,0.56776284,106170.0,106160.0,0.09133334]
[1762773132546,0.56776284,106170.0,106160.0,0.11396334]
[1762773133351,0.56776284,106170.0,106160.0,0.18828135]
[1762773133551,0.57176284,106170.0,106160.0,0.18828135]
[1762773133766,0.57576284,106170.0,106160.0,0.28350315]
[1762773136974,0.57576284,106170.0,106160.0,0.29680315]
[1762773137173,0.48154984,106170.0,106160.0,0.29680315]
[1762773137373,0.57576274,106170.0,106160.0,0.29680315]
[1762773139277,0.48154984,106170.0,106160.0,0.29680315]
[1762773139670,0.38007267,106170.0,106160.0,0.29680315]
[1762773139875,0.47245984,106170.0,106160.0,0.29680315]
[1762773140377,0.56667274,106170.0,106160.0,0.29680315]
[1762773141771,0.56667274,106170.0,106160.0,0.22909784]
[1762773142478,0.56667274,106170.0,106160.0,0.29680315]
[1762773142978,0.57576274,106170.0,106160.0,0.20258135]
[1762773143164,0.66814991,106170.0,106160.0,0.21579794]
[1762773143364,0.57576274,106170.0,106160.0,0.21579794]
[1762773143775,0.57576274,106170.0,106160.0,0.28350325]
[1762773144171,0.66814991,106170.0,106160.0,0.07090334]
[1762773144380,0.66814991,106170.0,106160.0,0.00319803]
[1762773144584,0.66814991,106170.0,106160.0,0.07090334]
[1762773144873,0.66805029,106170.0,106160.0,0.00319803]
[1762773146280,0.66805029,106170.0,106160.0,0.07090334]
[1762773146579,0.71868075,106170.0,106160.0,0.07090334]
[1762773146780,0.1467619,106160.0,106150.0,0.2055968]
[1762773147080,0.33363465,106160.0,106150.0,0.2055968]
[1762773148065,0.33763465,106160.0,106150.0,0.2055968]
[1762773149179,0.24341275,106160.0,106150.0,0.2192868]
[1762773149474,0.14433993,106160.0,106150.0,0.2192868]
[1762773149668,0.23479275,106160.0,106150.0,0.2192868]
[1762773149869,0.32901465,106160.0,106150.0,0.2192868]
[1762773151872,0.14433993,106160.0,106150.0,0.2192868]
[1762773152073,0.32901465,106160.0,106150.0,0.2192868]
[1762773152368,0.23479275,106160.0,106150.0,0.2192868]
[1762773152975,0.55899275,106160.0,106150.0,0.2192868]
[1762773153174,0.23479275,106160.0,106150.0,0.31162416]
[1762773153368,0.55899275,106160.0,106150.0,0.31162416]
[1762773153575,0.65321465,106160.0,106150.0,0.15158149]
[1762773154981,0.66183465,106160.0,106150.0,0.04366109]
[1762773155181,0.66183465,106160.0,106150.0,0.13789179]
[1762773155379,0.66183465,106160.0,106150.0,0.2055971]
[1762773158278,0.66183465,106160.0,106150.0,0.1113664]
[1762773158779,0.66183465,106160.0,106150.0,0.2055971]
[1762773158983,0.66183465,106160.0,106150.0,0.2192871]
[1762773169392,0.65321465,106160.0,106150.0,0.2192871]
[1762773173001,0.65321425,106160.0,106150.0,0.2192871]
[1762773174400,0.65321425,106160.0,106150.0,0.15158179]
[1762773174793,0.65321425,106160.0,106150.0,0.21943164]
[1762773176599,0.56087689,106160.0,106150.0,0.21943164]
[1762773177992,0.56087689,106160.0,106150.0,0.15158179]
[1762773178401,0.46853953,106160.0,106150.0,0.23623158]
[1762773179001,0.65321425,106160.0,106150.0,0.23623158]
[1762773180605,0.65321425,106160.0,106150.0,0.15158179]
[1762773181107,0.65321425,106160.0,106150.0,0.23623158]
[1762773181599,0.05011803,106160.0,106150.0,0.32856894]
[1762773181810,0.20619044,106190.0,106180.0,0.1383237]
[1762773181999,0.57305011,106190.0,106180.0,0.1383237]
[1762773182305,0.57305011,106190.0,106180.0,0.19390988]
[1762773182495,0.66538747,106190.0,106180.0,0.19390988]
[1762773182701,0.15473081,106190.0,106180.0,0.29963724]
[1762773182998,0.46577081,106190.0,106180.0,0.30063724]
[1762773183206,0.47577081,106190.0,106180.0,0.20929988]
[1762773183805,0.46977081,106190.0,106180.0,0.20829988]
[1762773183998,0.47377081,106190.0,106180.0,0.20829988]
[1762773184400,0.47377081,106190.0,106180.0,0.30063724]
[1762773186311,0.56796561,106190.0,106180.0,0.20829988]
[1762773186706,0.56796561,106190.0,106180.0,0.28519571]
[1762773187599,0.47377081,106190.0,106180.0,0.28519571]
[1762773187805,0.47377081,106190.0,106180.0,0.37753307]
[1762773188206,0.38143345,106190.0,106180.0,0.37753307]
[1762773188407,0.47377081,106190.0,106180.0,0.37753307]
[1762773188911,0.56796561,106190.0,106180.0,0.37753307]
[1762773189614,0.47377081,106190.0,106180.0,0.37753307]
[1762773189913,0.47377081,106190.0,106180.0,0.28519571]
[1762773190116,0.47377081,106190.0,106180.0,0.37753307]
[1762773190415,0.56796571,106190.0,106180.0,0.28519571]
[1762773190616,0.47377081,106190.0,106180.0,0.37753307]
[1762773192113,0.56796571,106190.0,106180.0,0.37753307]
[1762773192308,0.47377081,106190.0,106180.0,0.30969492]
[1762773193216,0.47377081,106190.0,106180.0,0.37753307]
[1762773193416,0.47377081,106190.0,106180.0,0.21735756]
[1762773193622,0.47377081,106190.0,106180.0,0.30969492]
[1762773193815,0.56796561,106190.0,106180.0,0.30969492]
[1762773194013,0.56796561,106190.0,106180.0,0.37753307]
[1762773194216,0.56796561,106190.0,106180.0,0.21735756]
[1762773194418,0.56796561,106190.0,106180.0,0.28519571]
[1762773195517,0.56796561,106190.0,106180.0,0.20324398]
[1762773195710,0.66921297,106190.0,106180.0,0.12201583]
[1762773195912,0.66921297,106190.0,106180.0,0.07789583]
[1762773196420,0.66921297,106190.0,106180.0,0.001]
[1762773196818,0.66921297,106190.0,106170.0,0.00014109]
[1762773196819,0.1456737,106180.0,106170.0,0.00014109]
[1762773197014,0.33254645,106180.0,106170.0,0.00014109]
[1762773198320,0.33654645,106180.0,106170.0,0.00014109]
[1762773199015,0.42688381,106180.0,106170.0,1e-08]
[1762773199420,0.42488381,106180.0,106170.0,1e-08]
[1762773199621,0.0942215,106160.0,106150.0,0.18384463]
[1762773199823,0.66154425,106160.0,106150.0,0.21305063]
[1762773200518,0.66154425,106160.0,106150.0,0.28088878]
[1762773200918,0.66154425,106160.0,106150.0,0.16520848]
[1762773201127,0.66154425,106160.0,106150.0,0.16820848]
[1762773201318,0.66154425,106160.0,106150.0,0.17020848]
[1762773201520,0.66154425,106160.0,106150.0,0.10237033]
[1762773202124,0.66154425,106160.0,106150.0,0.02644]
[1762773202319,0.66154425,106160.0,106140.0,0.06797924]
[1762773202320,0.75388161,106160.0,106140.0,0.06797924]
[1762773202521,0.33121502,106150.0,106140.0,1e-08]
[1762773202725,0.33341305,106150.0,106140.0,1e-08]
[1762773203421,0.33341305,106150.0,106140.0,0.09423921]
[1762773203819,0.33341305,106150.0,106140.0,0.13712921]
[1762773204022,0.24107569,106150.0,106140.0,0.13712921]
[1762773204529,0.33341305,106150.0,106140.0,0.13712921]
[1762773205030,0.2410931,106150.0,106140.0,0.13912921]
[1762773205731,0.1468628,106150.0,106140.0,0.13912921]
[1762773206636,0.2410931,106150.0,106140.0,0.13912921]
[1762773209738,0.2410931,106150.0,106140.0,0.04489001]
[1762773211932,0.2410931,106150.0,106140.0,0.13912921]
[1762773213137,0.2410931,106150.0,106140.0,0.15188921]
[1762773213639,0.2420931,106150.0,106140.0,0.15088921]
[1762773214343,0.2410931,106150.0,106140.0,0.15188921]
[1762773217544,0.1468628,106150.0,106140.0,0.15188921]
[1762773217739,0.4621528,106150.0,106140.0,0.15188921]
[1762773218141,0.5563831,106150.0,106140.0,0.15188921]
[1762773218838,0.2321831,106150.0,106140.0,0.15188921]
[1762773219041,0.5563831,106150.0,106140.0,0.15188921]
[1762773222546,0.2321831,106150.0,106140.0,0.15188921]
[1762773222847,0.5563431,106150.0,106140.0,0.15188921]
[1762773223348,0.1379528,106150.0,106140.0,0.15188921]
[1762773223539,0.5563432,106150.0,106140.0,0.15188921]
[1762773225644,0.4621128,106150.0,106140.0,0.15188921]
[1762773226348,0.5563429,106150.0,106140.0,0.15188921]
[1762773227350,0.5563429,106150.0,106140.0,0.21972736]
[1762773229553,0.5652529,106150.0,106140.0,0.02344001]
[1762773229755,0.5652529,106150.0,106140.0,0.04454001]
[1762773230049,0.5652529,106150.0,106140.0,0.13877891]
[1762773230243,0.5652529,106150.0,106140.0,0.00200001]
[1762773230648,0.5652529,106150.0,106140.0,0.02453001]
[1762773231150,0.65760767,106150.0,106140.0,0.00200001]
[1762773231553,0.5652529,106150.0,106140.0,0.00200001]
[1762773231857,0.65760767,106150.0,106140.0,0.00200001]
[1762773232260,0.67989696,106150.0,106140.0,0.00200001]
[1762773232459,0.65760767,106150.0,106140.0,0.06793398]
[1762773232759,0.6798964,106150.0,106140.0,9.583e-05]
[1762773233257,0.1461591,106140.0,106130.0,0.214803]
[1762773233457,0.33306667,106140.0,106130.0,0.214803]
[1762773234057,0.33306667,106140.0,106130.0,0.1167708]
[1762773234257,0.33306667,106140.0,106130.0,0.1378708]
[1762773235055,0.33306667,106140.0,106120.0,0.23920412]
[1762773235056,0.151048,106130.0,106120.0,0.23920412]
[1762773235261,0.5697608,106130.0,106120.0,0.23920412]
[1762773236162,0.5697608,106130.0,106120.0,0.24120412]
[1762773236559,0.5697608,106130.0,106120.0,0.31575858]
[1762773237659,0.5567908,106130.0,106120.0,0.31575858]
[1762773238261,0.4625428,106130.0,106120.0,0.31575858]
[1762773238858,0.5567908,106130.0,106120.0,0.31575858]
[1762773239161,0.4625428,106130.0,106120.0,0.31575858]
[1762773239567,0.5567908,106130.0,106120.0,0.31575858]
[1762773240262,0.4625428,106130.0,106120.0,0.31575858]
[1762773240462,0.5567908,106130.0,106120.0,0.31575858]
[1762773240662,0.5567908,106130.0,106120.0,0.23110879]
[1762773241164,0.5567908,106130.0,106120.0,0.31575858]
[1762773241854,0.5567908,106130.0,106120.0,0.22150448]
[1762773242058,0.5697608,106130.0,106120.0,0.22150448]
[1762773242461,0.5697608,106130.0,106120.0,0.31576138]
[1762773242657,0.5697608,106130.0,106120.0,0.22150448]
[1762773242862,0.5697608,106130.0,106120.0,0.19190173]
[1762773243062,0.5697608,106130.0,106120.0,0.12409469]
[1762773243970,0.5697608,106130.0,106120.0,0.12209469]
[1762773244267,0.5707608,106130.0,106120.0,0.12109469]
[1762773245364,0.5577908,106130.0,106120.0,0.22872139]
[1762773247869,0.4635428,106130.0,106120.0,0.22872139]
[1762773248063,0.4635828,106130.0,106120.0,0.22872139]
[1762773248262,0.2336307,106130.0,106120.0,0.29652843]
[1762773248467,0.4635828,106130.0,106120.0,0.29652843]
[1762773251268,0.4635828,106130.0,106120.0,0.22872139]
[1762773251964,0.1393828,106130.0,106120.0,0.22872139]
[1762773252167,0.1393828,106130.0,106120.0,0.31337118]
[1762773252369,0.37130803,106130.0,106120.0,0.40572595]
[1762773252566,0.00319803,106130.0,106120.0,0.40572595]
[1762773252768,0.22827803,106130.0,106120.0,0.40572595]
[1762773253668,0.34927803,106130.0,106120.0,0.32107616]
[1762773253866,0.34927803,106130.0,106120.0,0.40572595]
[1762773254474,0.00319803,106130.0,106120.0,0.40572595]